Cogmind - Beta 15 @@@ ROGUE MODE // 2025.09.25 @ 21:07:39 Player: Gruff Result: Smashed by cave-in Performance ------------- Evolutions (1) 500 Regions Visited (3) 600 Robots Destroyed (63) 315 Value Destroyed (1511) 1511 Prototype IDs (4) 80 Alien Tech Used (0) 0 Bonus (0) 0 TOTAL SCORE: 3006 Bonus ------- None Cogmind --------- Core Integrity 0/400 Matter 285/300 Energy 263/280 System Corruption 12% Temperature Cool (32) Movement Treading (160) Location -9/Storage Parts ------- > --- POWER (1) -------- Heavy Ion Engine > --- PROPULSION (2) --- Light Treads Light Treads > --- UTILITY (4) ------ Heat Sink Medium Armor Plating > --- WEAPON (2) ------- Advanced Beam Cannon Advanced Beam Cannon > --- INVENTORY (5) ---- Heavy Ion Engine Sensor Array Signal Interpreter Hacking Suite Mining Claw Peak State ------------ > --- POWER ------------ Heavy Ion Engine > --- PROPULSION ------- Light Treads Light Treads > --- UTILITY ---------- Heat Sink Heat Sink Medium Armor Plating Drone Bay > --- WEAPON ----------- Advanced Beam Cannon Advanced Beam Cannon > --- INVENTORY -------- Improved Ion Engine Sensor Array Signal Interpreter Hacking Suite Improved Medium Laser [Rating: 21] Favorites ----------- Power Reinforced Ion Engine Engine Reinforced Ion Engine Propulsion Light Treads Treads Light Treads Leg Aluminum Leg Hover Unit Hover Unit Utility Heat Sink Device Heat Sink Processor Transport Network Coupler Hackware Hacking Suite Protection Medium Armor Plating Weapon Advanced Beam Cannon Energy Gun Medium Laser Energy Cannon Advanced Beam Cannon Ballistic Gun Heavy Assault Rifle Ballistic Cannon Light Cannon Special Weapon Mining Laser Slashing Weapon Scythe Build | -11 -10 -9 -9 ------- Run | Yrd Mat Mat Sto Slots Evolved 2 | . . 2 . Power . | . . . . Propulsion . | . . . . Utility 2 | . . 2 . Weapon . | . . . . Parts Attached 62 | 8 1 39 14 Power 7 | 1 . 5 1 Engine 7 | 1 . 5 1 Core . | . . . . Reactor . | . . . . Propulsion 14 | 2 1 8 3 Treads 8 | . . 5 3 Leg 4 | 2 1 1 . Wheel . | . . . . Hover 2 | . . 2 . Flight . | . . . . Utility 21 | 2 . 12 7 Device 14 | 2 . 8 4 Storage . | . . . . Processor 1 | . . 1 . Hackware 1 | . . 1 . Protection 5 | . . 2 3 Artifact . | . . . . Weapon 20 | 3 . 14 3 Energy Gun 8 | 2 . 6 . Energy Cannon 5 | . . 3 2 Ballistic Gun 2 | . . 2 . Ballistic Cannon 2 | . . 2 . Launcher . | . . . . Special Weapon 1 | 1 . . . Impact Weapon . | . . . . Slashing Weapon 2 | . . 1 1 Piercing Weapon . | . . . . Special Melee Weapon . | . . . . Unidentified Prototypes 4 | . . 3 1 Parts Lost 8 | . . 6 2 Power . | . . . . Propulsion 1 | . . 1 . Utility 7 | . . 5 2 Weapon . | . . . . Highest Loss Streak 3 | . . 3 2 To Critical Strikes . | . . . . Average Backups 3 | . . 3 4 Power 1 | . . 1 1 Propulsion . | . . . . Utility 1 | . . . 2 Weapon . | . . . . Tool/Special . | . . . . Unused Backups 4 | . . . 4 Power 1 | . . . 1 Propulsion . | . . . . Utility 3 | . . . 3 Weapon . | . . . . Tool/Special . | . . . . Average Slot Usage (%) 92 | . 100 88 98 Engine 11 | . 14 11 11 Treads 12 | . . 9 22 Leg 8 | . 28 9 . Hover 1 | . . 1 . Device 23 | . 28 21 27 Processor 2 | . . 3 . Hackware 2 | . . 4 . Protection 6 | . . 4 15 Energy Gun 10 | . 14 13 4 Energy Cannon 6 | . . 3 15 Ballistic Gun 1 | . . 1 . Ballistic Cannon 1 | . . 2 . Special Weapon 1 | . 14 . . Slashing Weapon 1 | . . 1 1 Peak Build Rating 21 | 9 9 19 21 Average Rating 13 | 5 9 13 17 On Entrance 8 | . 9 9 15 Naked Turns . | . . . . Heaviest Build 33 | 10 10 26 33 Greatest Support 40 | 20 20 40 40 Greatest Overweight (x) 3 | 2 . 3 . Average Overweight (x) . | . . . . Largest Inventory Capacity 5 | 5 5 5 5 Average Capacity 5 | 5 5 5 5 Most Carried 5 | . 2 5 5 Average Carried 3 | . . 3 4 Final Capacity 5 | 5 5 5 5 Final Carried 5 | . 2 5 5 Class Distribution -------------------- 64% | Scavenger-Mutant 35% | Mutant Dominant Class ---------------- Scavenger-Mutant | -10/Materials Scavenger-Mutant | -9/Materials Scavenger-Mutant | -9/Storage Resources | -11 -10 -9 -9 ----------- Run | Yrd Mat Mat Sto Matter Collected 1263 | 214 76 683 290 Remotely . | . . . . Salvage Created 2139 | 92 170 1096 781 Parts 131 | 16 7 64 44 Haulers Intercepted 4 | . . 4 . Recyclers Shooed 3 | . . 2 1 Parts Field Recycled . | . . . . Retrieved Matter . | . . . . Parts Self-Destructed . | . . . . Prevented . | . . . . Kills | -11 -10 -9 -9 ------- Run | Yrd Mat Mat Sto Combat Hostiles Destroyed 41 | . 4 24 13 Guns 21 | . 4 14 3 Cannons 17 | . . 7 10 Classes Destroyed 11 | 1 2 6 2 Worker 3 | . . 2 1 Tunneler 7 | 5 . 2 . Hauler 4 | . . 4 . Recycler 2 | . . . 2 Operator 3 | . 1 1 1 Watcher 3 | . . 3 . Swarmer 10 | . . 10 . Grunt 16 | . 4 6 6 Brawler 2 | . . 2 . Duelist 1 | . . . 1 Sentry 12 | . . 6 6 Best Kill Streak 8 | 4 3 8 5 Combat Bots Only 4 | . 3 3 4 Max Kills in Single Turn 2 | 1 1 2 1 Gunslinging . | . . . . Exploded . | . . . . Melee . | . . . . Uniques/NPCs Destroyed . | . . . . Combat | -11 -10 -9 -9 -------- Run | Yrd Mat Mat Sto Hostile Shots Fired 283 | . 18 226 39 Missed 95 | . 7 77 11 Hits 188 | . 11 149 28 Melee 1 | . . . 1 Projectile 187 | . 11 149 27 Critical Strikes 1 | . . 1 . Damage Taken 2367 | . 122 1520 725 Core 439 | . 23 315 101 Absorbed by Shields . | . . . . Core Remaining (%) 95 | 100 90 . . Volleys Fired 200 | 12 28 116 44 Largest 2 | 1 2 2 2 Hottest 150 | 50 150 126 136 Shots Fired 347 | 12 33 213 89 Gun 217 | 12 28 152 25 Cannon 125 | . . 61 64 Launcher . | . . . . Special 5 | . 5 . . Kinetic 60 | . . 60 . Thermal 279 | 12 33 145 89 Explosive . | . . . . Electromagnetic 8 | . . 8 . Robot Hit Streak 9 | 4 9 8 6 Robot Miss Streak 6 | 1 3 6 2 Penetration Max . | . . . . Secondary Targets . | . . . . Shots Hit Robots 185 | 8 21 115 41 Core Hits 80 | 5 11 45 19 Critical Kills . | . . . . Critical Parts Destroyed . | . . . . Critical Strikes 17 | . 3 12 2 Burn 15 | . 3 10 2 Blast 2 | . . 2 . Melee Attacks 32 | . . . 32 Impact . | . . . . Slashing 32 | . . . 32 Piercing . | . . . . Sneak Attacks . | . . . . Combat Hostiles . | . . . . Follow-up Attacks . | . . . . Damage Inflicted 3217 | 98 288 1976 855 Guns 1974 | 98 247 1324 305 Cannons 1111 | . . 595 516 Explosions 45 | . . 45 . Melee . | . . . . Ramming 63 | . 17 12 34 Kinetic 636 | . . 636 . Thermal 2386 | 98 271 1196 821 Explosive 45 | . . 45 . Electromagnetic 87 | . . 87 . Impact . | . . . . Slashing . | . . . . Piercing . | . . . . Highest Corruption 12 | . . 2 12 Average Corruption 2 | . . 2 3 Corruption Purged . | . . . . Corruption Blocked . | . . . . Effects 33 | . . 12 21 Message Errors 8 | . . 3 5 Matter Fused 14 | . . 3 11 Heat Flow Errors 1 | . . 1 . Energy Discharges 2 | . . 1 1 Parts Rejected 2 | . . 2 . Data Loss (minor) 3 | . . 1 2 Data Loss (major) 1 | . . . 1 Misfires 2 | . . 1 1 Overload Shots . | . . . . Overflow Damage 27 | . . 27 . Projectiles 27 | . . 27 . Explosions . | . . . . Melee . | . . . . Knockbacks 2 | . . 2 . Impact . | . . . . Kinetic 2 | . . 2 . Secondary . | . . . . Self-Inflicted Damage . | . . . . Shots . | . . . . Rammed 6 | . . 2 4 Targets Rammed 11 | . 4 2 5 Kicked 4 | . 4 . . Crushed 1 | . . . 1 Highest Temperature 410 | 50 174 410 162 Average Temperature 76 | 18 68 91 56 Received Heat Transfer 564 | . 66 345 153 Effects 2 | . . 2 . Shutdowns 1 | . . 1 . Energy Bleed 1 | . . 1 . Siege Activations . | . . . . Martial Activations . | . . . . Shielding Activations . | . . . . Robots Disrupted . | . . . . Combat Hostiles . | . . . . Robots Corrupted . | . . . . Combat Hostiles . | . . . . Parts Fried 1 | . . 1 . Impact Corruptions . | . . . . Robots Melted 3 | . . 3 . Combat Hostiles 3 | . . 3 . Parts Melted 22 | 1 4 16 1 Heat Transferred 6784 | 296 1012 3737 1739 Parts Sabotaged . | . . . . Parts Stolen . | . . . . Parts Stripped . | . . . . Power Chain Reactions . | . . . . Alert | -11 -10 -9 -9 ------- Run | Yrd Mat Mat Sto Maximum Alert Level 1 | . . 1 . Low Security (%) 86 | 100 100 77 100 Level 1 13 | . . 22 . Level 2 . | . . . . Level 3 . | . . . . Level 4 . | . . . . Level 5 . | . . . . High Security . | . . . . Max Security . | . . . . Peak Influence 248 | 10 72 248 197 Initial 84 | . . 4 84 Average 105 | 1 35 109 137 Influence Increases 1354 | 25 142 754 433 Destroy 0b10 Robot/C 820 | . 80 480 260 Destroy 0b10 Robot/NC 110 | 25 5 60 20 Destroy Leader 264 | . 30 134 100 Successful Hack 62 | . 25 35 2 Disable Machine 60 | . . 15 45 Destroy Structure 8 | . 2 . 6 Lose Combat Pursuer 30 | . . 30 . Influence Decreases 1239 | 25 130 565 519 Entered New Map 125 | . . 8 117 Time Decay 1024 | 25 130 507 362 Lost Part 70 | . . 50 20 Lost Ally 20 | . . . 20 Squads Dispatched 10 | . 3 3 4 Investigation 4 | . 2 . 2 Extermination . | . . . . Reinforcement 5 | . 1 3 1 Assault . | . . . . Garrison 1 | . . . 1 Intercept . | . . . . Searches Triggered . | . . . . Construction Impeded . | . . . . Haulers Reinforced . | . . . . Active Scanning Responses . | . . . . Cargo Convoy Interrupts . | . . . . Stealth | -11 -10 -9 -9 --------- Run | Yrd Mat Mat Sto Distress Signals 6 | . . 4 2 Communications Jammed . | . . . . Distress Signals . | . . . . Times Spotted 60 | . 7 38 15 Peak Tracking Total 5 | . 2 5 3 Tactical Retreats 2 | . . 2 . Traps | -11 -10 -9 -9 ------- Run | Yrd Mat Mat Sto Traps Triggered 5 | . . 1 4 Indirectly . | . . . . Trap Hack Attempts . | . . . . Triggered . | . . . . Disarmed . | . . . . Reprogrammed . | . . . . Reused . | . . . . Traps Extracted . | . . . . Installed . | . . . . Triggered . | . . . . Machines | -11 -10 -9 -9 ---------- Run | Yrd Mat Mat Sto Machines Disabled 4 | . . 1 3 Max in Single Turn 1 | . . 1 1 Garrison Access 1 | . . . 1 Machines Repaired . | . . . . Machines Dismantled . | . . . . Machines Sabotaged . | . . . . Overloaded Fab Kills . | . . . . Hacking | -11 -10 -9 -9 --------- Run | Yrd Mat Mat Sto Machines Accessed 12 | . 4 5 3 Terminals 10 | . 4 4 2 Fabricators . | . . . . Repair Stations . | . . . . Recycling Units 1 | . . 1 . Scanalyzers . | . . . . Garrison Access 1 | . . . 1 Total Hacks 39 | . 16 18 5 Successful 25 | . 10 13 2 Failed 14 | . 6 5 3 Catastrophic 1 | . . . 1 Database Lockouts . | . . . . Manual 27 | . 16 11 . Terminals 36 | . 16 16 4 Fabricators . | . . . . Repair Stations . | . . . . Recycling Units 2 | . . 2 . Scanalyzers . | . . . . Garrison Access 1 | . . . 1 Terminal Hacks 4 | . . 3 1 Open Door 1 | . . . 1 Surveillance Status 1 | . . 1 . Hauler Manifests 2 | . . 2 . Fabricator Hacks . | . . . . Repair Station Hacks . | . . . . Recycling Unit Hacks 2 | . . 2 . Report Inventory 1 | . . 1 . Retrieve Components 1 | . . 1 . Scanalyzer . | . . . . Garrison Access Hacks 1 | . . . 1 Seal Access 1 | . . . 1 Unauthorized Hacks 18 | . 10 8 . Terminals 18 | . 10 8 . Assimilate 3 | . 2 1 . Botnet 6 | . 4 2 . Operators 2 | . 1 1 . Skim 7 | . 3 4 . Fabricators . | . . . . Repair Stations . | . . . . Recycling Units . | . . . . Scanalyzers . | . . . . Garrison Access . | . . . . Data Cores Recovered . | . . . . Used . | . . . . Hacking Detections 7 | . 3 3 1 Full Trace Events 3 | . 2 . 1 Feedback Events 1 | . . . 1 Corruption 1 | . . . 1 Feedback Blocked . | . . . . Robot Schematics Acquired . | . . . . Robots Built . | . . . . Authchips . | . . . . Time . | . . . . Total Robot Build Rating . | . . . . Part Schematics Acquired . | . . . . Parts Built . | . . . . Authchips . | . . . . Time . | . . . . Total Part Build Rating . | . . . . Parts Repaired . | . . . . Time . | . . . . Parts Recycled . | . . . . Recycled Matter . | . . . . Retrieved Matter . | . . . . Retrieved Components 10 | . . 10 . Parts Scanalyzed . | . . . . Part Schematics Acquired . | . . . . Parts Damaged . | . . . . Bothacking | -11 -10 -9 -9 ------------ Run | Yrd Mat Mat Sto Used RIF Installer . | . . . . Robots Hacked . | . . . . Non-combat . | . . . . Combat . | . . . . Robot Hacks Applied . | . . . . Relay Couplers Released . | . . . . Fabnet Peak Effective % . | . . . . Robots Rewired . | . . . . Allies Hacked . | . . . . Hacks Repelled . | . . . . Allies | -11 -10 -9 -9 -------- Run | Yrd Mat Mat Sto Total Allies . | . . . . Largest Group . | . . . . Highest-Rated Group . | . . . . Highest-Rated Ally . | . . . . Total Orders 1 | . . . 1 EXPLORE 1 | . . . 1 Ally Attacks . | . . . . Total Damage . | . . . . Kills . | . . . . Allies Corrupted . | . . . . Allies Melted . | . . . . Intel | -11 -10 -9 -9 ------- Run | Yrd Mat Mat Sto Active Infowar (turns) 1853 | 83 276 1466 28 Terrain 425 | 83 276 66 . Structural 630 | . . 628 2 Seismic 543 | 23 276 244 . T.N.C. 620 | . . 594 26 Robot Analysis Total . | . . . . Derelict Logs Recovered . | . . . . Drone Launches 4 | . . . 4 Drone Recoveries 2 | . . . 2 Exploration | -11 -10 -9 -9 ------------- Run | Yrd Mat Mat Sto Turns Passed 3035 | 140 276 1795 824 Spaces Moved 1527 | 91 160 944 332 Core 18 | 18 . . . Treads 731 | . . 399 332 Legs 663 | 73 160 430 . Wheels . | . . . . Hover 115 | . . 115 . Flight . | . . . . Fastest Speed 50 | 50 120 56 160 Average Speed 134 | 114 120 130 160 Slowest Speed 260 | 150 120 260 160 Overloaded Moves . | . . . . Propulsion Burnouts . | . . . . Robots Hopped . | . . . . Potential Cave-ins . | . . . . Cave-ins Triggered 2 | . . . 2 Exploration Rate (%) 31 | 3 25 64 34 Regions Visited 3 Branch Regions 1 Pre-discovered Areas . | . . . . Known Exits Taken . | . . . . Unknown Exits Taken 3 | 1 1 1 . Scrap Searched . | . . . . Spaces Dug 3 | . . . 3 Terrain Destroyed 5 | . 2 . 3 Melee 3 | . . . 3 Projectile 2 | . 2 . . AOE . | . . . . Terrain Rammed . | . . . . Walls Destroyed . | . . . . Machines Disabled . | . . . . Actions | -11 -10 -9 -9 --------- Run | Yrd Mat Mat Sto Total 2061 | 111 199 1281 470 Wait 167 | . 6 149 12 Move 1524 | 90 159 943 332 Hop . | . . . . Pick Up 15 | . 1 7 7 Fast Attach 28 | 8 . 14 6 Attach 3 | . . 3 . Detach 2 | . . 2 . Swap 47 | . 1 30 16 Drop 32 | 1 . 15 16 Fire 200 | 12 28 116 44 Melee 32 | . . . 32 Ram . | . . . . Kick 4 | . 4 . . Crush 7 | . . 2 5 Escape Stasis . | . . . . Rewire . | . . . . Trap . | . . . . Miscellaneous . | . . . . Route ------- -11/Scrapyard -10/Materials -9/Materials (discovered 3 exits: [*Mat] / [*Min] / *Sto) -9/Storage History --------- Turn | Location | Event 22 | -11/Scrapyard | Discovered new exit (range 14) 141 | -11/Scrapyard | Entered Materials 400 | -10/Materials | Discovered new exit (range 3) 417 | -10/Materials | Entered another Materials area 417 | -9/Materials | Evolved 2 slots: Utility x2 418 | -9/Materials | Discovered new exit (range 7) 952 | -9/Materials | Discovered new exit (range 16) 1153 | -9/Materials | Discovered new exit (range 8) 1214 | -9/Materials | Build established: Mutant 1215 | -9/Materials | Core integrity fell below 50% 1227 | -9/Materials | Lost 3 parts (1n2u) 1639 | -9/Materials | Build established: Scavenger-Mutant 2212 | -9/Materials | Entered Storage 2371 | -9/Storage | Garrison activated, responded to threat 2380 | -9/Storage | Core integrity fell below 20% 3030 | -9/Storage | Crushed by falling debris 3030 | -9/Storage | System corruption reached 10% 3037 | -9/Storage | Crushed by falling debris 3037 | -9/Storage | Smashed by cave-in Last Messages --------------- K-01 Serf destroyed. G-34 Mercenary destroyed. U-05 Engineer builds a Door. R-06 Scavenger collects Sml. Laser. System corrupted: Matter fused (-7). Acquired 7 matter. System corrupted: Matter fused (-5). Dropped Adv. Beam Cannon. Acquired Mining Claw. U-05 Engineer builds a Wall. XX/KZ,IPXMGEJ/7G,WRZMYB//7J63YHQ=3LGS5U% The unstable cave ceiling collapses. Crushed by falling debris. Heat Sink destroyed. System corrupted by crushing effect (+4). Lgt. Armor Plating destroyed. System corrupted by crushing effect (+4). YBQZHNTRJ4X The unstable cave ceiling collapses. Crushed by falling debris. Map ----- +----------------------------------------------------+ | ?????????????????????????????????????????????????? | | ?????????????????????????????????????????????????? | | ?????????????????????????????????????????????????? | | ????????????????????? ???????????????????????????? | | ?????????????????? ??????????????????????????? | | ???????????????? ?????????????????????????? | | ????????????? ?????????????????????????? | | ??????????? #????###????###???????????? | | ??????????? #????# ???? #???????????? | | ??????????? #????# ???? #???????????? | | ???????????? #????# """"? #???????????? | | ????????????? #????# "% "" ????????????? | | ?????????????? +????# "] " "?????????????? | | ???????????????# #????# "" !%"?#???????????? | | ???????????????# #????#[ ""=*" #???????????? | | ???????????????# ##???#=!!" *" #???????????? | | ???????????????# #???#%[% % #???????????? | | ????????????????? #???#+###########????????? | | ???????????####+### #???#%# """"" #????????? | | ???????????# # #???#=# """"" #???#####? | | ???????????# """ # ! #####=# """"" ##??#! !#? | | ???######### "T" +=%[ # #??#! !#? | | #### !# ] #%###/##### # #???# =!#? | | ## # / # ##T ###?# # #???# =!#? | | ## # /! #%###"###?# # #???##[### | | "!## [ !### #### #???#@#?# # #???#!==T# | | "=########+######## #???###?# #####+###########+## | | * +%/%= [! % #??????## ##?# %%[ | | *########^%!^ %#??????# ### [[* | | " # #=^^= ="![#??????# T [% | | #[ + " #??????# ##### ############# | | # """ # [ " #??????#####??## ## #??? | | ### """!#[ % ############### # """ #??? | | ??# """ +%[ =%= !%!=[=% !% + """ #??? | | ??# =######"="################# # """ #??? | | ??##### ##????#"G"#???????????????##### #??? | | ??????##??????#"""#???????????????????###### ##??? | | ??????????????#####????????????????????????###???? | | | | | | | | | | | | | | | | | | | | | | | | | +----------------------------------------------------+ Best States ------------- Heat Dissipation 58 Energy Generation 14 Energy Capacity 280 Matter Stores 300 Matter Capacity 300 Sight Range 16 Terrain Scan Range 16 Terrain Scan Density 10 Armor Coverage 375 Evasion (%) 63 Recoil Reduction 2 Offensive Hacking 10 Trap Extractor Capacity 4 Item Schematics ----------------- None Robot Schematics ------------------ None Fabricated ------------ Nothing Repaired ---------- Nothing Alien Tech Used ----------------- None Achievements -------------- None Challenges ------------ None Game ------ Seed SensorServoScrapsphere Manual? 0 Play Time 00:27:39 Cumulative 47.4 hours Start 2025.09.25 @ 20:43:57 End 2025.09.25 @ 21:07:39 Sessions 1 Manual Loads 0 Difficulty Rogue Special Mode None Game No. 62 Rogue 62 Adventurer 0 Explorer 0 Win Type - Total 0 Types 0/0/0/0/0/0/0/0/0/0 Lore% 31 Gallery% 31 Achievement% 28 Wizard Run 0 Options --------- Layout 0 ASCII 0 Keyboard 0 Movement Numpad Keybinds 0 Fullscreen 1 Font 24/Smallcaps Map View 91x25 Zoom Use 73% Tactical HUD 0 Map Filters NONE Filters NONE Steam 1 RUN: 98f5935d-8b41-47d7-ac2e-4a803c5377ad